[Event "Titled Tuesday Blitz March 14 Late 2023"]
[White "Adury, Anant"]
[Black "Domingo Nunez, Ruben"]
[WhiteFideId "30964687"]
[BlackFideId "22245570"]
[WhiteElo "2254"]
[BlackElo "2404"]
[Result "0-1"]
[Round "01"]
[TimeControl "180+1"]
[Date "2023.03.14"]
[WhiteClock "0:00:30"]
[BlackClock "0:01:42"]

1. Nf3 {[%clk 0:02:59]}  g6 {[%clk 0:02:47]} 2. d4 {[%clk 0:02:46]}  Bg7 {[%clk 0:02:46]} 3. e4 {[%clk 0:02:47]}  c6 {[%clk 0:02:46]} 4. Nc3 {[%clk 0:02:42]}  d5 {[%clk 0:02:47]} 5. Be2 {[%clk 0:02:42]}  dxe4 {[%clk 0:02:48]} 6. Nxe4 {[%clk 0:02:43]}  Nf6 {[%clk 0:02:48]} 7. Nxf6+ {[%clk 0:02:42]}  exf6 {[%clk 0:02:49]} 8. O-O {[%clk 0:02:43]}  O-O {[%clk 0:02:50]} 9. c3 {[%clk 0:02:40]}  a5 {[%clk 0:02:51]} 10. a4 {[%clk 0:02:39]}  Na6 {[%clk 0:02:52]} 11. Bf4 {[%clk 0:02:38]}  Nc7 {[%clk 0:02:53]} 12. Re1 {[%clk 0:02:28]}  Nd5 {[%clk 0:02:53]} 13. Bd2 {[%clk 0:02:28]}  Be6 {[%clk 0:02:53]} 14. Qc2 {[%clk 0:02:22]}  Qd6 {[%clk 0:02:53]} 15. Bd3 {[%clk 0:02:21]}  Rfe8 {[%clk 0:02:48]} 16. Rad1 {[%clk 0:02:17]}  Bf8 {[%clk 0:02:48]} 17. Bc1 {[%clk 0:02:18]}  Nf4 {[%clk 0:02:48]} 18. Bxf4 {[%clk 0:02:02]}  Qxf4 {[%clk 0:02:48]} 19. Re4 {[%clk 0:02:02]}  Qd6 {[%clk 0:02:48]} 20. Rde1 {[%clk 0:02:03]}  Bd7 {[%clk 0:02:38]} 21. Rxe8 {[%clk 0:02:02]}  Rxe8 {[%clk 0:02:39]} 22. Rxe8 {[%clk 0:02:02]}  Bxe8 {[%clk 0:02:39]} 23. Qe2 {[%clk 0:01:57]}  Bd7 {[%clk 0:02:38]} 24. Nd2 {[%clk 0:01:57]}  Kg7 {[%clk 0:02:19]} 25. Nc4 {[%clk 0:01:57]}  Qc7 {[%clk 0:02:19]} 26. g3 {[%clk 0:01:46]}  h5 {[%clk 0:02:18]} 27. h4 {[%clk 0:01:43]}  b5 {[%clk 0:02:16]} 28. axb5 {[%clk 0:01:43]}  cxb5 {[%clk 0:02:17]} 29. Ne3 {[%clk 0:01:43]}  b4 {[%clk 0:02:17]} 30. Nd5 {[%clk 0:01:32]}  Qd6 {[%clk 0:02:17]} 31. Ne3 {[%clk 0:01:14]}  bxc3 {[%clk 0:02:01]} 32. bxc3 {[%clk 0:01:14]}  Qa3 {[%clk 0:02:01]} 33. Qc2 {[%clk 0:00:44]}  a4 {[%clk 0:01:56]} 34. Kg2 {[%clk 0:00:39]}  Qa1 {[%clk 0:01:54]} 35. c4 {[%clk 0:00:33]}  Qxd4 {[%clk 0:01:54]} 36. Be4 {[%clk 0:00:31]}  a3 {[%clk 0:01:51]} 37. Bd5 {[%clk 0:00:30]}  Bc5 {[%clk 0:01:42]} 0-1


[Site "https://www.chess.com"]

[Event "Titled Tuesday Blitz March 14 Late 2023"]
[White "Almeida Quintana, Omar"]
[Black "Castillo Pena, Patricia Evarista"]
[WhiteFideId "3503313"]
[BlackFideId "6412106"]
[WhiteElo "2530"]
[BlackElo "1919"]
[Result "1-0"]
[Round "01"]
[TimeControl "180+1"]
[Date "2023.03.14"]
[WhiteClock "0:00:53"]
[BlackClock "0:00:02"]

1. d4 {[%clk 0:02:59]}  d5 {[%clk 0:02:56]} 2. Nf3 {[%clk 0:02:58]}  Nf6 {[%clk 0:02:46]} 3. c4 {[%clk 0:02:58]}  c6 {[%clk 0:02:46]} 4. Nc3 {[%clk 0:02:57]}  e6 {[%clk 0:02:46]} 5. Bg5 {[%clk 0:02:55]}  Be7 {[%clk 0:02:44]} 6. e3 {[%clk 0:02:55]}  Nbd7 {[%clk 0:02:43]} 7. a3 {[%clk 0:02:54]}  h6 {[%clk 0:02:44]} 8. Bh4 {[%clk 0:02:54]}  O-O {[%clk 0:02:38]} 9. Rc1 {[%clk 0:02:52]}  a6 {[%clk 0:02:33]} 10. cxd5 {[%clk 0:02:50]}  exd5 {[%clk 0:02:32]} 11. Bd3 {[%clk 0:02:49]}  Re8 {[%clk 0:02:30]} 12. O-O {[%clk 0:02:48]}  c5 {[%clk 0:02:18]} 13. dxc5 {[%clk 0:02:42]}  Nxc5 {[%clk 0:02:11]} 14. Nd4 {[%clk 0:02:16]}  Bg4 {[%clk 0:02:00]} 15. Be2 {[%clk 0:02:07]}  Bxe2 {[%clk 0:01:53]} 16. Qxe2 {[%clk 0:02:08]}  Nce4 {[%clk 0:01:36]} 17. Nxe4 {[%clk 0:02:01]}  Nxe4 {[%clk 0:01:10]} 18. Bxe7 {[%clk 0:01:59]}  Qxe7 {[%clk 0:01:09]} 19. Rc2 {[%clk 0:01:50]}  Rac8 {[%clk 0:01:08]} 20. Rfc1 {[%clk 0:01:49]}  Qd7 {[%clk 0:01:05]} 21. h3 {[%clk 0:01:44]}  Ng5 {[%clk 0:00:50]} 22. Qg4 {[%clk 0:01:39]}  Qxg4 {[%clk 0:00:46]} 23. hxg4 {[%clk 0:01:40]}  Rxc2 {[%clk 0:00:46]} 24. Rxc2 {[%clk 0:01:40]}  Re4 {[%clk 0:00:38]} 25. Rc8+ {[%clk 0:01:28]}  Kh7 {[%clk 0:00:38]} 26. Rc7 {[%clk 0:01:28]}  Rxg4 {[%clk 0:00:29]} 27. Rxb7 {[%clk 0:01:27]}  Nh3+ {[%clk 0:00:18]} 28. Kf1 {[%clk 0:01:23]}  Ng5 {[%clk 0:00:16]} 29. Ra7 {[%clk 0:01:19]}  Ne4 {[%clk 0:00:10]} 30. f3 {[%clk 0:01:15]}  Ng3+ {[%clk 0:00:10]} 31. Kf2 {[%clk 0:01:14]}  Rg6 {[%clk 0:00:10]} 32. Rxf7 {[%clk 0:01:11]}  Nh1+ {[%clk 0:00:10]} 33. Kg1 {[%clk 0:01:10]}  Ng3 {[%clk 0:00:10]} 34. b4 {[%clk 0:01:10]}  h5 {[%clk 0:00:07]} 35. Nf5 {[%clk 0:01:03]}  Ne2+ {[%clk 0:00:04]} 36. Kf2 {[%clk 0:01:01]}  Nc3 {[%clk 0:00:04]} 37. g3 {[%clk 0:00:57]}  Nb5 {[%clk 0:00:04]} 38. a4 {[%clk 0:00:57]}  Nc3 {[%clk 0:00:04]} 39. a5 {[%clk 0:00:56]}  Na2 {[%clk 0:00:03]} 40. Rb7 {[%clk 0:00:55]}  Nc3 {[%clk 0:00:02]} 41. Rb6 {[%clk 0:00:53]} 1-0


[Site "https://www.chess.com"]

[Event "Titled Tuesday Blitz March 14 Late 2023"]
[White "Arnold, Ken"]
[Black "Cardoso Cardoso, Jose Gabriel"]
[WhiteFideId "2056836"]
[BlackFideId "4430492"]
[WhiteElo "2349"]
[BlackElo "2496"]
[Result "0-1"]
[Round "01"]
[TimeControl "180+1"]
[Date "2023.03.14"]
[WhiteClock "0:02:13"]
[BlackClock "0:02:19"]

1. d4 {[%clk 0:03:00]}  Nf6 {[%clk 0:02:53]} 2. c4 {[%clk 0:02:57]}  e6 {[%clk 0:02:51]} 3. Nc3 {[%clk 0:02:57]}  d5 {[%clk 0:02:50]} 4. cxd5 {[%clk 0:02:56]}  exd5 {[%clk 0:02:51]} 5. Nf3 {[%clk 0:02:54]}  c6 {[%clk 0:02:50]} 6. Bf4 {[%clk 0:02:54]}  Bd6 {[%clk 0:02:49]} 7. Bxd6 {[%clk 0:02:54]}  Qxd6 {[%clk 0:02:50]} 8. e3 {[%clk 0:02:54]}  Bf5 {[%clk 0:02:50]} 9. Bd3 {[%clk 0:02:54]}  Bxd3 {[%clk 0:02:47]} 10. Qxd3 {[%clk 0:02:55]}  O-O {[%clk 0:02:47]} 11. O-O {[%clk 0:02:55]}  a5 {[%clk 0:02:45]} 12. Ne5 {[%clk 0:02:54]}  Re8 {[%clk 0:02:42]} 13. Rac1 {[%clk 0:02:49]}  Nfd7 {[%clk 0:02:37]} 14. f4 {[%clk 0:02:41]}  f6 {[%clk 0:02:33]} 15. Nxd7 {[%clk 0:02:29]}  Nxd7 {[%clk 0:02:34]} 16. Na4 {[%clk 0:02:26]}  Re7 {[%clk 0:02:29]} 17. Rf3 {[%clk 0:02:19]}  Rae8 {[%clk 0:02:27]} 18. Qc3 {[%clk 0:02:16]}  Qb4 {[%clk 0:02:21]} 19. a3 {[%clk 0:02:13]}  Qxa4 {[%clk 0:02:19]} 0-1


[Site "https://www.chess.com"]

[Event "Titled Tuesday Blitz March 14 Late 2023"]
[White "Barash, Anton"]
[Black "Grinev, Valeriy"]
[WhiteFideId "30935229"]
[BlackFideId "14117517"]
[WhiteElo "2344"]
[BlackElo "2365"]
[Result "0-1"]
[Round "01"]
[TimeControl "180+1"]
[Date "2023.03.14"]
[WhiteClock "0:01:29"]
[BlackClock "0:02:09"]

1. e4 {[%clk 0:02:35]}  c5 {[%clk 0:02:59]} 2. Nf3 {[%clk 0:02:34]}  e6 {[%clk 0:02:58]} 3. d4 {[%clk 0:02:33]}  cxd4 {[%clk 0:02:59]} 4. Nxd4 {[%clk 0:02:34]}  a6 {[%clk 0:03:00]} 5. Bd3 {[%clk 0:02:26]}  Bc5 {[%clk 0:02:59]} 6. Nb3 {[%clk 0:02:22]}  Be7 {[%clk 0:03:00]} 7. c4 {[%clk 0:02:15]}  d6 {[%clk 0:02:57]} 8. O-O {[%clk 0:02:12]}  Nf6 {[%clk 0:02:57]} 9. Be3 {[%clk 0:02:06]}  b6 {[%clk 0:02:56]} 10. a4 {[%clk 0:01:58]}  Nc6 {[%clk 0:02:50]} 11. a5 {[%clk 0:01:54]}  Nxa5 {[%clk 0:02:31]} 12. Nxa5 {[%clk 0:01:51]}  bxa5 {[%clk 0:02:32]} 13. Qa4+ {[%clk 0:01:49]}  Bd7 {[%clk 0:02:22]} 14. Qxa5 {[%clk 0:01:49]}  O-O {[%clk 0:02:21]} 15. Nc3 {[%clk 0:01:48]}  Bc6 {[%clk 0:02:21]} 16. f3 {[%clk 0:01:42]}  Qb8 {[%clk 0:02:17]} 17. b4 {[%clk 0:01:29]}  d5 {[%clk 0:02:12]} 18. b5 {[%clk 0:01:29]}  axb5 {[%clk 0:02:09]} 0-1


[Site "https://www.chess.com"]

[Event "Titled Tuesday Blitz March 14 Late 2023"]
[White "Bas Mas, Jose Joaquin"]
[Black "Averjanov, Alexey"]
[WhiteFideId "22219064"]
[BlackFideId "14109867"]
[WhiteElo "2233"]
[BlackElo "2715"]
[Result "0-1"]
[Round "01"]
[TimeControl "180+1"]
[Date "2023.03.14"]
[WhiteClock "0:01:33"]
[BlackClock "0:01:36"]

1. e4 {[%clk 0:02:59]}  c6 {[%clk 0:02:57]} 2. d4 {[%clk 0:02:58]}  d5 {[%clk 0:02:57]} 3. f3 {[%clk 0:02:59]}  dxe4 {[%clk 0:02:57]} 4. fxe4 {[%clk 0:02:54]}  e5 {[%clk 0:02:57]} 5. Nf3 {[%clk 0:02:51]}  Bg4 {[%clk 0:02:57]} 6. Bc4 {[%clk 0:02:50]}  Nd7 {[%clk 0:02:56]} 7. O-O {[%clk 0:02:49]}  Ngf6 {[%clk 0:02:52]} 8. Nc3 {[%clk 0:02:46]}  b5 {[%clk 0:02:46]} 9. Be2 {[%clk 0:02:43]}  Bd6 {[%clk 0:02:40]} 10. Bg5 {[%clk 0:02:35]}  Qc7 {[%clk 0:02:38]} 11. h3 {[%clk 0:02:27]}  Bh5 {[%clk 0:02:37]} 12. a3 {[%clk 0:02:24]}  O-O {[%clk 0:02:35]} 13. g4 {[%clk 0:02:17]}  Bg6 {[%clk 0:02:34]} 14. Bd3 {[%clk 0:02:13]}  exd4 {[%clk 0:02:26]} 15. Nxd4 {[%clk 0:02:08]}  Bc5 {[%clk 0:02:21]} 16. Ne2 {[%clk 0:01:54]}  Bxd4+ {[%clk 0:02:20]} 17. Nxd4 {[%clk 0:01:54]}  Qg3+ {[%clk 0:02:19]} 18. Kh1 {[%clk 0:01:55]}  Qxh3+ {[%clk 0:02:19]} 19. Kg1 {[%clk 0:01:55]}  Qg3+ {[%clk 0:02:16]} 20. Kh1 {[%clk 0:01:55]}  Bxe4+ {[%clk 0:02:05]} 21. Bxe4 {[%clk 0:01:52]}  Nxe4 {[%clk 0:02:06]} 22. Qe2 {[%clk 0:01:41]}  Nxg5 {[%clk 0:01:56]} 23. Nf5 {[%clk 0:01:39]}  Qh3+ {[%clk 0:01:53]} 24. Kg1 {[%clk 0:01:39]}  Rae8 {[%clk 0:01:49]} 25. Qf2 {[%clk 0:01:35]}  Qxg4+ {[%clk 0:01:44]} 26. Kh1 {[%clk 0:01:35]}  Qh5+ {[%clk 0:01:39]} 27. Kg2 {[%clk 0:01:33]}  Re2 {[%clk 0:01:36]} 0-1


[Site "https://www.chess.com"]

[Event "Titled Tuesday Blitz March 14 Late 2023"]
[White "Bryakin, Mikhail"]
[Black "Bilan, Danila"]
[WhiteFideId "4165314"]
[BlackFideId "24161918"]
[WhiteElo "2449"]
[BlackElo "2182"]
[Result "0-1"]
[Round "01"]
[TimeControl "180+1"]
[Date "2023.03.14"]
[WhiteClock "0:00:19"]
[BlackClock "0:00:06"]

1. e4 {[%clk 0:02:53]}  c6 {[%clk 0:02:59]} 2. d4 {[%clk 0:02:45]}  d5 {[%clk 0:03:00]} 3. Nc3 {[%clk 0:02:37]}  dxe4 {[%clk 0:02:57]} 4. Nxe4 {[%clk 0:02:38]}  Bf5 {[%clk 0:02:55]} 5. Ng3 {[%clk 0:02:37]}  Bg6 {[%clk 0:02:55]} 6. h4 {[%clk 0:02:33]}  h6 {[%clk 0:02:53]} 7. Nf3 {[%clk 0:02:34]}  Nd7 {[%clk 0:02:53]} 8. h5 {[%clk 0:02:34]}  Bh7 {[%clk 0:02:53]} 9. Bd3 {[%clk 0:02:34]}  Bxd3 {[%clk 0:02:53]} 10. Qxd3 {[%clk 0:02:35]}  Qc7 {[%clk 0:02:52]} 11. Bd2 {[%clk 0:02:27]}  e6 {[%clk 0:02:50]} 12. Ne4 {[%clk 0:02:23]}  Ngf6 {[%clk 0:02:39]} 13. O-O-O {[%clk 0:02:20]}  Bd6 {[%clk 0:02:36]} 14. Nxd6+ {[%clk 0:02:13]}  Qxd6 {[%clk 0:02:37]} 15. Kb1 {[%clk 0:02:09]}  Qd5 {[%clk 0:02:32]} 16. c4 {[%clk 0:02:00]}  Qe4 {[%clk 0:02:30]} 17. Qxe4 {[%clk 0:02:00]}  Nxe4 {[%clk 0:02:31]} 18. Be3 {[%clk 0:02:01]}  O-O {[%clk 0:02:18]} 19. Ne5 {[%clk 0:01:51]}  Rfd8 {[%clk 0:02:01]} 20. Kc2 {[%clk 0:01:34]}  Nd6 {[%clk 0:01:54]} 21. b3 {[%clk 0:01:25]}  Rac8 {[%clk 0:01:44]} 22. g4 {[%clk 0:01:08]}  b5 {[%clk 0:01:21]} 23. Nxd7 {[%clk 0:00:53]}  Rxd7 {[%clk 0:01:20]} 24. Kc3 {[%clk 0:00:54]}  Ne4+ {[%clk 0:01:15]} 25. Kd3 {[%clk 0:00:54]}  Nf6 {[%clk 0:00:58]} 26. f3 {[%clk 0:00:51]}  c5 {[%clk 0:00:48]} 27. cxb5 {[%clk 0:00:47]}  cxd4 {[%clk 0:00:46]} 28. Bd2 {[%clk 0:00:48]}  Nd5 {[%clk 0:00:32]} 29. Rc1 {[%clk 0:00:48]}  Nc3 {[%clk 0:00:30]} 30. a4 {[%clk 0:00:47]}  e5 {[%clk 0:00:22]} 31. Rc2 {[%clk 0:00:45]}  Rcd8 {[%clk 0:00:14]} 32. Rf1 {[%clk 0:00:41]}  Nd5 {[%clk 0:00:14]} 33. Rc5 {[%clk 0:00:40]}  f6 {[%clk 0:00:13]} 34. Rfc1 {[%clk 0:00:34]}  Kf7 {[%clk 0:00:13]} 35. a5 {[%clk 0:00:33]}  Ke6 {[%clk 0:00:13]} 36. Rc6+ {[%clk 0:00:34]}  Rd6 {[%clk 0:00:14]} 37. b4 {[%clk 0:00:34]}  Rd7 {[%clk 0:00:11]} 38. Rxd6+ {[%clk 0:00:29]}  Rxd6 {[%clk 0:00:09]} 39. Rc8 {[%clk 0:00:30]}  Rd7 {[%clk 0:00:09]} 40. Rc6+ {[%clk 0:00:30]}  Kf7 {[%clk 0:00:09]} 41. Rc5 {[%clk 0:00:18]}  Ke6 {[%clk 0:00:09]} 42. Kc4 {[%clk 0:00:18]}  Ne3+ {[%clk 0:00:09]} 43. Kb3 {[%clk 0:00:18]}  Nf1 {[%clk 0:00:09]} 44. Rc2 {[%clk 0:00:15]}  d3 {[%clk 0:00:09]} 45. Ra2 {[%clk 0:00:16]}  f5 {[%clk 0:00:09]} 46. gxf5+ {[%clk 0:00:16]}  Kxf5 {[%clk 0:00:10]} 47. b6 {[%clk 0:00:16]}  axb6 {[%clk 0:00:11]} 48. a6 {[%clk 0:00:17]}  b5 {[%clk 0:00:08]} 49. Be1 {[%clk 0:00:13]}  d2 {[%clk 0:00:07]} 50. Bxd2 {[%clk 0:00:08]}  Nxd2+ {[%clk 0:00:08]} 51. Kc3 {[%clk 0:00:09]}  Nb1+ {[%clk 0:00:08]} 52. Kb2 {[%clk 0:00:09]}  Nd2 {[%clk 0:00:08]} 53. a7 {[%clk 0:00:09]}  Nc4+ {[%clk 0:00:09]} 54. Kc3 {[%clk 0:00:10]}  Nb6 {[%clk 0:00:09]} 55. Ra5 {[%clk 0:00:07]}  Rc7+ {[%clk 0:00:08]} 56. Kb3 {[%clk 0:00:08]}  Na8 {[%clk 0:00:07]} 57. Ra6 {[%clk 0:00:08]}  e4 {[%clk 0:00:05]} 58. fxe4+ {[%clk 0:00:08]}  Kxe4 {[%clk 0:00:06]} 59. Ra5 {[%clk 0:00:08]}  Rb7 {[%clk 0:00:06]} 60. Kc3 {[%clk 0:00:08]}  Kd5 {[%clk 0:00:06]} 61. Kd3 {[%clk 0:00:09]}  Kc6 {[%clk 0:00:05]} 62. Ra6+ {[%clk 0:00:09]}  Rb6 {[%clk 0:00:06]} 63. Ra1 {[%clk 0:00:10]}  Kb7 {[%clk 0:00:06]} 64. Rg1 {[%clk 0:00:11]}  Rd6+ {[%clk 0:00:06]} 65. Ke4 {[%clk 0:00:11]}  Rd7 {[%clk 0:00:07]} 66. Ra1 {[%clk 0:00:10]}  Re7+ {[%clk 0:00:05]} 67. Kf5 {[%clk 0:00:11]}  Rd7 {[%clk 0:00:05]} 68. Kg6 {[%clk 0:00:11]}  Nb6 {[%clk 0:00:04]} 69. Ra5 {[%clk 0:00:12]}  Rd5 {[%clk 0:00:05]} 70. Ra1 {[%clk 0:00:11]}  Rg5+ {[%clk 0:00:05]} 71. Kf7 {[%clk 0:00:11]}  Rxh5 {[%clk 0:00:06]} 72. Kxg7 {[%clk 0:00:12]}  Rh4 {[%clk 0:00:06]} 73. Kg6 {[%clk 0:00:10]}  Rxb4 {[%clk 0:00:06]} 74. Kxh6 {[%clk 0:00:11]}  Ra4 {[%clk 0:00:07]} 75. Rb1 {[%clk 0:00:11]}  b4 {[%clk 0:00:07]} 76. Kg5 {[%clk 0:00:12]}  Kxa7 {[%clk 0:00:07]} 77. Kf4 {[%clk 0:00:13]}  Ka6 {[%clk 0:00:08]} 78. Ke3 {[%clk 0:00:14]}  Kb5 {[%clk 0:00:08]} 79. Kd4 {[%clk 0:00:15]}  Ra3 {[%clk 0:00:08]} 80. Rh1 {[%clk 0:00:15]}  Ka4 {[%clk 0:00:06]} 81. Rh6 {[%clk 0:00:15]}  Ka5 {[%clk 0:00:04]} 82. Kc5 {[%clk 0:00:13]}  Na4+ {[%clk 0:00:04]} 83. Kc4 {[%clk 0:00:14]}  Rc3+ {[%clk 0:00:04]} 84. Kd4 {[%clk 0:00:14]}  Kb5 {[%clk 0:00:04]} 85. Rh8 {[%clk 0:00:15]}  Rc6 {[%clk 0:00:04]} 86. Rb8+ {[%clk 0:00:14]}  Rb6 {[%clk 0:00:05]} 87. Rh8 {[%clk 0:00:15]}  b3 {[%clk 0:00:04]} 88. Kd3 {[%clk 0:00:15]}  Kb4 {[%clk 0:00:04]} 89. Kd2 {[%clk 0:00:16]}  Ka3 {[%clk 0:00:04]} 90. Rh3 {[%clk 0:00:16]}  Ka2 {[%clk 0:00:03]} 91. Rh4 {[%clk 0:00:16]}  Rd6+ {[%clk 0:00:04]} 92. Ke2 {[%clk 0:00:16]}  Nc5 {[%clk 0:00:04]} 93. Rc4 {[%clk 0:00:15]}  b2 {[%clk 0:00:04]} 94. Rxc5 {[%clk 0:00:16]}  b1=Q {[%clk 0:00:04]} 95. Ra5+ {[%clk 0:00:17]}  Kb2 {[%clk 0:00:05]} 96. Rb5+ {[%clk 0:00:18]}  Kc1 {[%clk 0:00:06]} 97. Rxb1+ {[%clk 0:00:19]} 0-1


[Site "https://www.chess.com"]

[Event "Titled Tuesday Blitz March 14 Late 2023"]
[White "Burg, Twan"]
[Black "Senft, Sean"]
[WhiteFideId "1010697"]
[BlackFideId "2044960"]
[WhiteElo "2422"]
[BlackElo "1989"]
[Result "1-0"]
[Round "01"]
[TimeControl "180+1"]
[Date "2023.03.14"]
[WhiteClock "0:00:52"]
[BlackClock "0:00:04"]

1. e4 {[%clk 0:02:59]}  e5 {[%clk 0:02:56]} 2. Nf3 {[%clk 0:02:59]}  Nc6 {[%clk 0:02:56]} 3. Nc3 {[%clk 0:02:59]}  Nf6 {[%clk 0:02:56]} 4. d4 {[%clk 0:03:00]}  d6 {[%clk 0:02:53]} 5. Bb5 {[%clk 0:03:00]}  Bd7 {[%clk 0:02:51]} 6. O-O {[%clk 0:03:00]}  exd4 {[%clk 0:02:49]} 7. Nxd4 {[%clk 0:03:01]}  Be7 {[%clk 0:02:49]} 8. Bxc6 {[%clk 0:03:01]}  bxc6 {[%clk 0:02:46]} 9. Qf3 {[%clk 0:03:01]}  c5 {[%clk 0:02:41]} 10. Nf5 {[%clk 0:03:00]}  Bxf5 {[%clk 0:02:41]} 11. Qxf5 {[%clk 0:03:01]}  O-O {[%clk 0:02:31]} 12. b3 {[%clk 0:03:00]}  Nd7 {[%clk 0:02:30]} 13. Bb2 {[%clk 0:02:59]}  Bf6 {[%clk 0:02:30]} 14. Rad1 {[%clk 0:02:57]}  Nb6 {[%clk 0:02:26]} 15. Rfe1 {[%clk 0:02:53]}  Qc8 {[%clk 0:02:21]} 16. Qf3 {[%clk 0:02:44]}  Re8 {[%clk 0:02:20]} 17. Ba1 {[%clk 0:02:36]}  Qa6 {[%clk 0:02:17]} 18. a4 {[%clk 0:02:31]}  Qa5 {[%clk 0:02:05]} 19. Nb5 {[%clk 0:02:25]}  Bxa1 {[%clk 0:02:03]} 20. Rxa1 {[%clk 0:02:26]}  Rac8 {[%clk 0:01:59]} 21. c4 {[%clk 0:02:02]}  a6 {[%clk 0:01:49]} 22. Nc3 {[%clk 0:02:01]}  Re6 {[%clk 0:01:37]} 23. Qd3 {[%clk 0:01:55]}  h6 {[%clk 0:01:22]} 24. Re3 {[%clk 0:01:53]}  Nd7 {[%clk 0:01:21]} 25. Nd5 {[%clk 0:01:49]}  Nf6 {[%clk 0:01:14]} 26. Nf4 {[%clk 0:01:47]}  Re5 {[%clk 0:01:04]} 27. f3 {[%clk 0:01:43]}  Qb4 {[%clk 0:00:57]} 28. Qc2 {[%clk 0:01:41]}  Rce8 {[%clk 0:00:52]} 29. Nd3 {[%clk 0:01:40]}  Qb6 {[%clk 0:00:44]} 30. Nxe5 {[%clk 0:01:37]}  Rxe5 {[%clk 0:00:45]} 31. Rd1 {[%clk 0:01:36]}  Re8 {[%clk 0:00:39]} 32. h3 {[%clk 0:01:35]}  Nd7 {[%clk 0:00:37]} 33. Qd2 {[%clk 0:01:33]}  Nb8 {[%clk 0:00:31]} 34. a5 {[%clk 0:01:16]}  Qc6 {[%clk 0:00:20]} 35. Qd5 {[%clk 0:01:13]}  Qxd5 {[%clk 0:00:20]} 36. cxd5 {[%clk 0:01:11]}  Nd7 {[%clk 0:00:19]} 37. b4 {[%clk 0:01:06]}  cxb4 {[%clk 0:00:17]} 38. Rb3 {[%clk 0:01:05]}  f5 {[%clk 0:00:08]} 39. Rxb4 {[%clk 0:01:03]}  fxe4 {[%clk 0:00:08]} 40. Rxe4 {[%clk 0:01:02]}  Rb8 {[%clk 0:00:08]} 41. Re7 {[%clk 0:01:02]}  Ne5 {[%clk 0:00:07]} 42. Rxc7 {[%clk 0:01:01]}  Rb5 {[%clk 0:00:07]} 43. f4 {[%clk 0:00:54]}  Nf7 {[%clk 0:00:04]} 44. Re1 {[%clk 0:00:52]} 1-0


[Site "https://www.chess.com"]

[Event "Titled Tuesday Blitz March 14 Late 2023"]
[White "Chigaev, Maksim"]
[Black "Grycel, Kamil"]
[WhiteFideId "4108116"]
[BlackFideId "1115499"]
[WhiteElo "2547"]
[BlackElo "2465"]
[Result "1-0"]
[Round "01"]
[TimeControl "180+1"]
[Date "2023.03.14"]
[WhiteClock "0:00:10"]
[BlackClock "0:00:05"]

1. e4 {[%clk 0:02:59]}  b6 {[%clk 0:02:58]} 2. d4 {[%clk 0:02:59]}  Bb7 {[%clk 0:02:58]} 3. Nc3 {[%clk 0:03:00]}  e6 {[%clk 0:02:58]} 4. Nf3 {[%clk 0:02:49]}  Bb4 {[%clk 0:02:57]} 5. Bd3 {[%clk 0:02:48]}  Nf6 {[%clk 0:02:57]} 6. Qe2 {[%clk 0:02:48]}  d5 {[%clk 0:02:57]} 7. e5 {[%clk 0:02:37]}  Ne4 {[%clk 0:02:56]} 8. O-O {[%clk 0:02:37]}  Nxc3 {[%clk 0:02:56]} 9. bxc3 {[%clk 0:02:38]}  Bxc3 {[%clk 0:02:57]} 10. Ba3 {[%clk 0:02:35]}  Bxa1 {[%clk 0:02:53]} 11. Rxa1 {[%clk 0:02:36]}  h6 {[%clk 0:02:52]} 12. Qe3 {[%clk 0:02:16]}  Nc6 {[%clk 0:02:47]} 13. Qf4 {[%clk 0:02:14]}  Qd7 {[%clk 0:02:44]} 14. Qg4 {[%clk 0:02:01]}  g5 {[%clk 0:02:21]} 15. h4 {[%clk 0:02:01]}  Rg8 {[%clk 0:02:05]} 16. hxg5 {[%clk 0:01:39]}  hxg5 {[%clk 0:01:53]} 17. Nxg5 {[%clk 0:01:39]}  O-O-O {[%clk 0:01:53]} 18. c3 {[%clk 0:01:38]}  Rg7 {[%clk 0:01:37]} 19. Qh4 {[%clk 0:01:36]}  Rdg8 {[%clk 0:01:35]} 20. f4 {[%clk 0:01:36]}  Ne7 {[%clk 0:01:23]} 21. Rf1 {[%clk 0:01:10]}  Nf5 {[%clk 0:01:15]} 22. Bxf5 {[%clk 0:01:06]}  exf5 {[%clk 0:01:15]} 23. Rf2 {[%clk 0:01:05]}  Qa4 {[%clk 0:01:09]} 24. Be7 {[%clk 0:01:05]}  Ba6 {[%clk 0:00:59]} 25. Bf6 {[%clk 0:00:58]}  Rg6 {[%clk 0:00:56]} 26. Qh3 {[%clk 0:00:46]}  Qd1+ {[%clk 0:00:50]} 27. Kh2 {[%clk 0:00:47]}  Bd3 {[%clk 0:00:50]} 28. Nxf7 {[%clk 0:00:33]}  Qe1 {[%clk 0:00:36]} 29. Bh4 {[%clk 0:00:31]}  Qc1 {[%clk 0:00:31]} 30. Qxd3 {[%clk 0:00:23]}  R8g7 {[%clk 0:00:28]} 31. Qxf5+ {[%clk 0:00:23]}  Kb7 {[%clk 0:00:28]} 32. e6 {[%clk 0:00:21]}  c6 {[%clk 0:00:19]} 33. Nd6+ {[%clk 0:00:10]}  Ka6 {[%clk 0:00:18]} 34. Qd3+ {[%clk 0:00:11]}  b5 {[%clk 0:00:18]} 35. a4 {[%clk 0:00:11]}  Kb6 {[%clk 0:00:09]} 36. axb5 {[%clk 0:00:11]}  Rg4 {[%clk 0:00:09]} 37. Nf5 {[%clk 0:00:11]}  Rh7 {[%clk 0:00:08]} 38. Qh3 {[%clk 0:00:09]}  Qc2 {[%clk 0:00:07]} 39. Rxc2 {[%clk 0:00:09]}  Rgxh4 {[%clk 0:00:06]} 40. Nxh4 {[%clk 0:00:09]}  Rg7 {[%clk 0:00:05]} 41. f5 {[%clk 0:00:10]} 1-0


[Site "https://www.chess.com"]